[Event "January 2 Early 2024"]
[Site "https://www.chess.com"]
[Date "2024.01.02"]
[Round "6"]
[White "Zainullina, Nataliya"]
[Black "neri_gaite"]
[Result "1-0"]
[Board "199"]
[TimeControl "180+1"]
[WhiteFideId "4145488"]
[WhiteElo "2193"]
[BlackElo "2022"]
[WhiteTeam "RUS"]
[WhiteClock "0:00:32"]
[BlackClock "0:01:09"]

1. e4 {[%clk 0:03:00]}  e6 {[%clk 0:02:59]} 2. d4 {[%clk 0:03:00]}  d5 {[%clk 0:03:00]} 3. Nd2 {[%clk 0:03:00]}  dxe4 {[%clk 0:03:00]} 4. Nxe4 {[%clk 0:03:00]}  Nd7 {[%clk 0:03:01]} 5. Nf3 {[%clk 0:02:59]}  Ngf6 {[%clk 0:03:01]} 6. Nxf6+ {[%clk 0:02:58]}  Nxf6 {[%clk 0:03:02]} 7. Bd3 {[%clk 0:02:57]}  c5 {[%clk 0:03:02]} 8. O-O {[%clk 0:02:51]}  cxd4 {[%clk 0:03:02]} 9. Nxd4 {[%clk 0:02:50]}  a6 {[%clk 0:03:00]} 10. Be3 {[%clk 0:02:43]}  Be7 {[%clk 0:03:00]} 11. Re1 {[%clk 0:02:40]}  O-O {[%clk 0:02:59]} 12. c3 {[%clk 0:02:31]}  Nd5 {[%clk 0:02:59]} 13. Bd2 {[%clk 0:02:27]}  Qc7 {[%clk 0:02:58]} 14. Qh5 {[%clk 0:02:23]}  Nf6 {[%clk 0:02:56]} 15. Qf3 {[%clk 0:02:19]}  b6 {[%clk 0:02:50]} 16. Bf4 {[%clk 0:02:18]}  Qb7 {[%clk 0:02:48]} 17. Qe2 {[%clk 0:02:10]}  Nd5 {[%clk 0:02:46]} 18. Bd2 {[%clk 0:01:56]}  Qc7 {[%clk 0:02:41]} 19. Qe4 {[%clk 0:01:55]}  Nf6 {[%clk 0:02:35]} 20. Qxa8 {[%clk 0:01:54]}  Bb7 {[%clk 0:02:36]} 21. Qa7 {[%clk 0:01:54]}  Ra8 {[%clk 0:02:34]} 22. Bf4 {[%clk 0:01:35]}  Qc8 {[%clk 0:02:29]} 23. Qxb6 {[%clk 0:01:32]}  Bc5 {[%clk 0:02:25]} 24. Qc7 {[%clk 0:01:31]}  Nd5 {[%clk 0:02:22]} 25. Qxc8+ {[%clk 0:01:26]}  Rxc8 {[%clk 0:02:23]} 26. Bg3 {[%clk 0:01:25]}  Bxd4 {[%clk 0:02:19]} 27. cxd4 {[%clk 0:01:25]}  Nb4 {[%clk 0:02:20]} 28. Be4 {[%clk 0:01:23]}  Bd5 {[%clk 0:02:13]} 29. Bxd5 {[%clk 0:01:22]}  exd5 {[%clk 0:02:13]} 30. Rac1 {[%clk 0:01:21]}  Rd8 {[%clk 0:02:11]} 31. Re3 {[%clk 0:01:20]}  Nxa2 {[%clk 0:02:10]} 32. Ra1 {[%clk 0:01:07]}  Nb4 {[%clk 0:02:10]} 33. Rc3 {[%clk 0:01:06]}  h5 {[%clk 0:02:05]} 34. f3 {[%clk 0:01:03]}  Re8 {[%clk 0:02:00]} 35. Kf2 {[%clk 0:01:02]}  Re6 {[%clk 0:01:48]} 36. Ra4 {[%clk 0:00:57]}  Rb6 {[%clk 0:01:41]} 37. Rb3 {[%clk 0:00:56]}  a5 {[%clk 0:01:37]} 38. Bc7 {[%clk 0:00:48]}  Nd3+ {[%clk 0:01:28]} 39. Rxd3 {[%clk 0:00:46]}  Rxb2+ {[%clk 0:01:29]} 40. Ke3 {[%clk 0:00:44]}  g5 {[%clk 0:01:28]} 41. Bxa5 {[%clk 0:00:44]}  g4 {[%clk 0:01:28]} 42. fxg4 {[%clk 0:00:44]}  hxg4 {[%clk 0:01:29]} 43. Rc3 {[%clk 0:00:43]}  Rxg2 {[%clk 0:01:29]} 44. Kf4 {[%clk 0:00:41]}  f5 {[%clk 0:01:27]} 45. Bc7 {[%clk 0:00:35]}  Kf7 {[%clk 0:01:18]} 46. Be5 {[%clk 0:00:34]}  Rxh2 {[%clk 0:01:15]} 47. Rc7+ {[%clk 0:00:33]}  Kg6 {[%clk 0:01:10]} 48. Ra6+ {[%clk 0:00:33]}  Kh5 {[%clk 0:01:09]} 49. Rh7# {[%clk 0:00:32]} 1-0

[Event "January 2 Early 2024"]
[Site "https://www.chess.com"]
[Date "2024.01.02"]
[Round "6"]
[White "Tilahun , Abel Mathewos"]
[Black "Babayeva, Nasrin"]
[Result "1-0"]
[Board "200"]
[TimeControl "180+1"]
[WhiteFideId "15702391"]
[BlackFideId "13416626"]
[WhiteElo "2067"]
[BlackElo "1806"]
[WhiteTeam "ETH"]
[BlackTeam "AZE"]
[WhiteClock "0:01:16"]
[BlackClock "0:00:16"]

1. d4 {[%clk 0:03:00]}  d6 {[%clk 0:02:58]} 2. c4 {[%clk 0:03:01]}  e5 {[%clk 0:02:58]} 3. Nc3 {[%clk 0:03:02]}  exd4 {[%clk 0:02:58]} 4. Qxd4 {[%clk 0:03:03]}  Nc6 {[%clk 0:02:58]} 5. Qd1 {[%clk 0:03:03]}  g6 {[%clk 0:02:58]} 6. Nf3 {[%clk 0:03:04]}  Bg7 {[%clk 0:02:57]} 7. g3 {[%clk 0:03:05]}  Nge7 {[%clk 0:02:31]} 8. Bg2 {[%clk 0:03:04]}  O-O {[%clk 0:02:25]} 9. O-O {[%clk 0:03:05]}  Be6 {[%clk 0:02:24]} 10. Nd5 {[%clk 0:03:04]}  h6 {[%clk 0:01:58]} 11. Be3 {[%clk 0:02:50]}  Bxb2 {[%clk 0:01:47]} 12. Rb1 {[%clk 0:02:50]}  Bg7 {[%clk 0:01:45]} 13. Rxb7 {[%clk 0:02:47]}  Bxd5 {[%clk 0:01:36]} 14. cxd5 {[%clk 0:02:43]}  Na5 {[%clk 0:01:31]} 15. Rb1 {[%clk 0:02:37]}  Nc4 {[%clk 0:01:29]} 16. Bd4 {[%clk 0:02:36]}  Nf5 {[%clk 0:01:17]} 17. Bxg7 {[%clk 0:02:32]}  Nxg7 {[%clk 0:01:18]} 18. Qc1 {[%clk 0:02:30]}  Nb6 {[%clk 0:01:17]} 19. Qxh6 {[%clk 0:02:29]}  Nf5 {[%clk 0:01:14]} 20. Qd2 {[%clk 0:02:25]}  Re8 {[%clk 0:01:05]} 21. Bh3 {[%clk 0:02:17]}  Qf6 {[%clk 0:01:00]} 22. Rbc1 {[%clk 0:02:15]}  Re7 {[%clk 0:00:50]} 23. Rfe1 {[%clk 0:02:01]}  Rae8 {[%clk 0:00:16]} 24. Bf1 {[%clk 0:01:16]} 1-0

[Event "January 2 Early 2024"]
[Site "https://www.chess.com"]
[Date "2024.01.02"]
[Round "6"]
[White "Pesotskiy, Mikhail"]
[Black "Kekic, Armin"]
[Result "1/2-1/2"]
[Board "202"]
[TimeControl "180+1"]
[WhiteFideId "34164453"]
[BlackFideId "14401274"]
[WhiteElo "2491"]
[BlackElo "2272"]
[WhiteTeam "RUS"]
[BlackTeam "BIH"]
[WhiteClock "0:00:36"]
[BlackClock "0:00:57"]

1. d4 {[%clk 0:03:00]}  d6 {[%clk 0:02:58]} 2. c4 {[%clk 0:03:01]}  Nc6 {[%clk 0:02:59]} 3. Nc3 {[%clk 0:02:58]}  e5 {[%clk 0:02:59]} 4. d5 {[%clk 0:02:58]}  Nce7 {[%clk 0:02:59]} 5. e4 {[%clk 0:02:59]}  Ng6 {[%clk 0:02:57]} 6. g3 {[%clk 0:02:56]}  Be7 {[%clk 0:02:57]} 7. h4 {[%clk 0:02:56]}  Nf6 {[%clk 0:02:56]} 8. h5 {[%clk 0:02:54]}  Nf8 {[%clk 0:02:56]} 9. Be2 {[%clk 0:02:40]}  h6 {[%clk 0:02:56]} 10. Nh3 {[%clk 0:02:37]}  N8h7 {[%clk 0:02:55]} 11. Be3 {[%clk 0:02:35]}  b6 {[%clk 0:02:54]} 12. f3 {[%clk 0:02:28]}  a5 {[%clk 0:02:53]} 13. g4 {[%clk 0:02:28]}  Nd7 {[%clk 0:02:53]} 14. Qd2 {[%clk 0:02:27]}  Bh4+ {[%clk 0:02:51]} 15. Kd1 {[%clk 0:02:26]}  Bg5 {[%clk 0:02:51]} 16. Nxg5 {[%clk 0:02:24]}  hxg5 {[%clk 0:02:51]} 17. Kc2 {[%clk 0:02:19]}  f6 {[%clk 0:02:51]} 18. Nd1 {[%clk 0:02:13]}  a4 {[%clk 0:02:49]} 19. Bf2 {[%clk 0:02:12]}  Nc5 {[%clk 0:02:49]} 20. Ne3 {[%clk 0:02:11]}  Bd7 {[%clk 0:02:49]} 21. b4 {[%clk 0:02:11]}  axb3+ {[%clk 0:02:47]} 22. axb3 {[%clk 0:02:11]}  Kf7 {[%clk 0:02:46]} 23. Qc3 {[%clk 0:01:58]}  Qe7 {[%clk 0:02:45]} 24. Rhb1 {[%clk 0:01:55]}  Rhb8 {[%clk 0:02:43]} 25. Be1 {[%clk 0:01:52]}  Qe8 {[%clk 0:02:39]} 26. Nd1 {[%clk 0:01:45]}  Nf8 {[%clk 0:02:24]} 27. Qd2 {[%clk 0:01:40]}  Rxa1 {[%clk 0:02:20]} 28. Rxa1 {[%clk 0:01:41]}  Ra8 {[%clk 0:02:21]} 29. Qc1 {[%clk 0:01:39]}  Qb8 {[%clk 0:02:02]} 30. Nc3 {[%clk 0:01:37]}  Ra7 {[%clk 0:01:54]} 31. Rxa7 {[%clk 0:01:33]}  Qxa7 {[%clk 0:01:54]} 32. Kb2 {[%clk 0:01:32]}  g6 {[%clk 0:01:44]} 33. hxg6+ {[%clk 0:01:18]}  Nxg6 {[%clk 0:01:44]} 34. b4 {[%clk 0:01:12]}  Na4+ {[%clk 0:01:42]} 35. Nxa4 {[%clk 0:01:12]}  Qxa4 {[%clk 0:01:42]} 36. Bd1 {[%clk 0:01:12]}  Qa7 {[%clk 0:01:36]} 37. Qa1 {[%clk 0:01:13]}  Qxa1+ {[%clk 0:01:32]} 38. Kxa1 {[%clk 0:01:14]}  Ke7 {[%clk 0:01:29]} 39. Kb2 {[%clk 0:01:12]}  Nf4 {[%clk 0:01:30]} 40. Kc3 {[%clk 0:01:11]}  Ng2 {[%clk 0:01:28]} 41. Bd2 {[%clk 0:01:10]}  Nf4 {[%clk 0:01:28]} 42. Be3 {[%clk 0:01:08]}  Ng2 {[%clk 0:01:25]} 43. Bf2 {[%clk 0:01:08]}  Nf4 {[%clk 0:01:24]} 44. c5 {[%clk 0:01:07]}  bxc5 {[%clk 0:01:24]} 45. bxc5 {[%clk 0:01:08]}  Bb5 {[%clk 0:01:23]} 46. c6 {[%clk 0:00:58]}  Be2 {[%clk 0:01:16]} 47. Bxe2 {[%clk 0:00:56]}  Nxe2+ {[%clk 0:01:15]} 48. Kd2 {[%clk 0:00:57]}  Nf4 {[%clk 0:01:16]} 49. Kc3 {[%clk 0:00:44]}  Kd8 {[%clk 0:01:15]} 50. Be3 {[%clk 0:00:38]}  Ng6 {[%clk 0:01:12]} 51. Kd2 {[%clk 0:00:35]}  Kc8 {[%clk 0:01:07]} 52. Ke2 {[%clk 0:00:36]}  Kb8 {[%clk 0:01:07]} 53. Kf2 {[%clk 0:00:35]}  Kc8 {[%clk 0:01:03]} 54. Kf1 {[%clk 0:00:35]}  Kb8 {[%clk 0:01:03]} 55. Kf2 {[%clk 0:00:36]}  Kc8 {[%clk 0:01:00]} 56. Kf1 {[%clk 0:00:36]}  Nh4 {[%clk 0:00:59]} 57. Kf2 {[%clk 0:00:36]}  Kd8 {[%clk 0:00:59]} 58. Kg3 {[%clk 0:00:36]}  Ng6 {[%clk 0:00:58]} 59. Kf2 {[%clk 0:00:36]}  Kc8 {[%clk 0:00:57]} 1/2-1/2

[Event "January 2 Early 2024"]
[Site "https://www.chess.com"]
[Date "2024.01.02"]
[Round "6"]
[White "Marcziter, Dmitrii"]
[Black "Petersson, Kjell"]
[Result "1-0"]
[Board "207"]
[TimeControl "180+1"]
[WhiteFideId "13900765"]
[BlackFideId "1705148"]
[WhiteElo "2382"]
[BlackElo "2146"]
[WhiteTeam "GER"]
[BlackTeam "SWE"]
[WhiteClock "0:01:13"]
[BlackClock "0:00:09"]

1. d4 {[%clk 0:03:00]}  f5 {[%clk 0:02:59]} 2. g3 {[%clk 0:02:59]}  Nf6 {[%clk 0:02:59]} 3. Bg2 {[%clk 0:02:59]}  e6 {[%clk 0:03:00]} 4. Nh3 {[%clk 0:02:58]}  d5 {[%clk 0:02:56]} 5. O-O {[%clk 0:02:57]}  Bd6 {[%clk 0:02:53]} 6. Bf4 {[%clk 0:02:57]}  Be7 {[%clk 0:02:53]} 7. Be5 {[%clk 0:02:56]}  O-O {[%clk 0:02:48]} 8. Nd2 {[%clk 0:02:54]}  c5 {[%clk 0:02:36]} 9. e3 {[%clk 0:02:52]}  Nc6 {[%clk 0:02:34]} 10. Nf3 {[%clk 0:02:52]}  h6 {[%clk 0:02:29]} 11. Nf4 {[%clk 0:02:50]}  Kh7 {[%clk 0:02:23]} 12. h4 {[%clk 0:02:48]}  Ng4 {[%clk 0:02:13]} 13. h5 {[%clk 0:02:40]}  Ncxe5 {[%clk 0:02:07]} 14. dxe5 {[%clk 0:02:39]}  Qc7 {[%clk 0:01:58]} 15. Ng6 {[%clk 0:02:38]}  Rf7 {[%clk 0:01:57]} 16. c4 {[%clk 0:02:34]}  dxc4 {[%clk 0:01:38]} 17. a4 {[%clk 0:02:32]}  Rb8 {[%clk 0:01:32]} 18. Qc2 {[%clk 0:02:32]}  b5 {[%clk 0:01:20]} 19. axb5 {[%clk 0:02:30]}  Rxb5 {[%clk 0:01:21]} 20. Ra2 {[%clk 0:02:26]}  Rb4 {[%clk 0:01:14]} 21. Rfa1 {[%clk 0:02:24]}  a6 {[%clk 0:01:12]} 22. e4 {[%clk 0:02:16]}  Qb6 {[%clk 0:00:58]} 23. exf5 {[%clk 0:02:10]}  exf5 {[%clk 0:00:57]} 24. Rd1 {[%clk 0:01:56]}  Be6 {[%clk 0:00:51]} 25. Nxe7 {[%clk 0:01:51]}  Rxe7 {[%clk 0:00:51]} 26. Rd6 {[%clk 0:01:51]}  Qb5 {[%clk 0:00:45]} 27. Rxe6 {[%clk 0:01:51]}  Rf7 {[%clk 0:00:39]} 28. Rexa6 {[%clk 0:01:47]}  Qe8 {[%clk 0:00:24]} 29. e6 {[%clk 0:01:41]}  Rf8 {[%clk 0:00:24]} 30. Nh4 {[%clk 0:01:31]}  Qxh5 {[%clk 0:00:23]} 31. e7 {[%clk 0:01:27]}  Rf6 {[%clk 0:00:22]} 32. Rxf6 {[%clk 0:01:22]}  Nxf6 {[%clk 0:00:22]} 33. Qxf5+ {[%clk 0:01:20]}  Qxf5 {[%clk 0:00:22]} 34. Nxf5 {[%clk 0:01:20]}  Kg6 {[%clk 0:00:20]} 35. Nd6 {[%clk 0:01:19]}  Rb8 {[%clk 0:00:18]} 36. Bc6 {[%clk 0:01:18]}  Kh7 {[%clk 0:00:11]} 37. e8=Q {[%clk 0:01:16]}  Nxe8 {[%clk 0:00:10]} 38. Bxe8 {[%clk 0:01:14]}  Rxe8 {[%clk 0:00:09]} 39. Nxe8 {[%clk 0:01:13]} 1-0

[Event "January 2 Early 2024"]
[Site "https://www.chess.com"]
[Date "2024.01.02"]
[Round "7"]
[White "Sadhwani, Raunak"]
[Black "Rustemov, Alexander"]
[Result "1-0"]
[Board "2"]
[TimeControl "180+1"]
[WhiteFideId "35093487"]
[BlackFideId "4119002"]
[WhiteElo "3082"]
[BlackElo "2875"]
[WhiteTeam "IND"]
[BlackTeam "RUS"]
[WhiteClock "0:00:13"]
[BlackClock "0:00:00"]

1. e4 {[%clk 0:03:00]}  e6 {[%clk 0:03:00]} 2. d4 {[%clk 0:03:00]}  d5 {[%clk 0:03:01]} 3. Nc3 {[%clk 0:03:01]}  dxe4 {[%clk 0:03:01]} 4. Nxe4 {[%clk 0:03:01]}  Bd7 {[%clk 0:03:02]} 5. Nf3 {[%clk 0:03:01]}  Bc6 {[%clk 0:03:03]} 6. Bd3 {[%clk 0:03:02]}  Nd7 {[%clk 0:03:03]} 7. O-O {[%clk 0:03:02]}  Ngf6 {[%clk 0:03:04]} 8. Qe2 {[%clk 0:03:02]}  Nxe4 {[%clk 0:03:04]} 9. Bxe4 {[%clk 0:03:03]}  Bxe4 {[%clk 0:03:04]} 10. Qxe4 {[%clk 0:03:04]}  c6 {[%clk 0:03:05]} 11. c4 {[%clk 0:03:03]}  Bd6 {[%clk 0:03:05]} 12. Rd1 {[%clk 0:03:00]}  O-O {[%clk 0:03:04]} 13. g3 {[%clk 0:03:00]}  Qf6 {[%clk 0:03:00]} 14. Kg2 {[%clk 0:02:57]}  Rfe8 {[%clk 0:02:58]} 15. Bg5 {[%clk 0:02:55]}  Qg6 {[%clk 0:02:58]} 16. Qxg6 {[%clk 0:02:56]}  hxg6 {[%clk 0:02:58]} 17. h4 {[%clk 0:02:55]}  f6 {[%clk 0:02:45]} 18. Be3 {[%clk 0:02:55]}  Kf7 {[%clk 0:02:45]} 19. Nd2 {[%clk 0:02:53]}  Rad8 {[%clk 0:02:35]} 20. Ne4 {[%clk 0:02:52]}  Be7 {[%clk 0:02:33]} 21. Rac1 {[%clk 0:02:49]}  a6 {[%clk 0:02:33]} 22. b3 {[%clk 0:02:40]}  f5 {[%clk 0:02:32]} 23. Ng5+ {[%clk 0:02:25]}  Bxg5 {[%clk 0:02:32]} 24. Bxg5 {[%clk 0:02:26]}  Nf6 {[%clk 0:02:29]} 25. Kf3 {[%clk 0:02:22]}  Rd7 {[%clk 0:02:28]} 26. Be3 {[%clk 0:02:03]}  Red8 {[%clk 0:02:26]} 27. Ke2 {[%clk 0:02:04]}  Ne4 {[%clk 0:02:22]} 28. Rd3 {[%clk 0:01:41]}  e5 {[%clk 0:01:59]} 29. Rcd1 {[%clk 0:01:41]}  exd4 {[%clk 0:01:59]} 30. Bxd4 {[%clk 0:01:40]}  c5 {[%clk 0:01:45]} 31. Bb2 {[%clk 0:01:38]}  Rxd3 {[%clk 0:01:45]} 32. Rxd3 {[%clk 0:01:38]}  Rxd3 {[%clk 0:01:45]} 33. Kxd3 {[%clk 0:01:39]}  Nxf2+ {[%clk 0:01:46]} 34. Ke3 {[%clk 0:01:40]}  Ne4 {[%clk 0:01:42]} 35. Kf4 {[%clk 0:01:39]}  Nf2 {[%clk 0:01:35]} 36. Ba3 {[%clk 0:00:58]}  Nd3+ {[%clk 0:01:25]} 37. Ke3 {[%clk 0:00:58]}  Nb4 {[%clk 0:01:26]} 38. Bxb4 {[%clk 0:00:49]}  cxb4 {[%clk 0:01:26]} 39. Kd4 {[%clk 0:00:50]}  g5 {[%clk 0:01:23]} 40. hxg5 {[%clk 0:00:46]}  Kg6 {[%clk 0:01:24]} 41. Kc5 {[%clk 0:00:45]}  Kxg5 {[%clk 0:01:24]} 42. Kb6 {[%clk 0:00:46]}  Kg4 {[%clk 0:01:16]} 43. Kxb7 {[%clk 0:00:44]}  Kxg3 {[%clk 0:01:16]} 44. c5 {[%clk 0:00:44]}  f4 {[%clk 0:01:17]} 45. c6 {[%clk 0:00:42]}  f3 {[%clk 0:01:17]} 46. c7 {[%clk 0:00:42]}  f2 {[%clk 0:01:18]} 47. c8=Q {[%clk 0:00:42]}  f1=Q {[%clk 0:01:18]} 48. Qc7+ {[%clk 0:00:42]}  Kf3 {[%clk 0:01:11]} 49. Qxg7 {[%clk 0:00:38]}  Qb5+ {[%clk 0:01:07]} 50. Ka7 {[%clk 0:00:34]}  Ke3 {[%clk 0:00:44]} 51. Qe7+ {[%clk 0:00:20]}  Kd2 {[%clk 0:00:40]} 52. Qb7 {[%clk 0:00:17]}  Qc5+ {[%clk 0:00:30]} 53. Kxa6 {[%clk 0:00:15]}  Kc2 {[%clk 0:00:29]} 54. Qb6 {[%clk 0:00:13]}  Qd6 {[%clk 0:00:00]} 55. Qxd6 {[%clk 0:00:13]} 1-0

[Event "January 2 Early 2024"]
[Site "https://www.chess.com"]
[Date "2024.01.02"]
[Round "7"]
[White "Navara, David"]
[Black "Carlsen, Magnus"]
[Result "1/2-1/2"]
[Board "3"]
[TimeControl "180+1"]
[WhiteFideId "309095"]
[BlackFideId "1503014"]
[WhiteElo "2984"]
[BlackElo "3369"]
[WhiteTeam "CZE"]
[BlackTeam "NOR"]
[WhiteClock "0:01:32"]
[BlackClock "0:01:06"]

1. d4 {[%clk 0:03:00]}  a6 {[%clk 0:02:59]} 2. e4 {[%clk 0:03:00]}  e6 {[%clk 0:02:57]} 3. Nf3 {[%clk 0:02:54]}  d5 {[%clk 0:02:56]} 4. Nbd2 {[%clk 0:02:51]}  c5 {[%clk 0:02:55]} 5. exd5 {[%clk 0:02:51]}  exd5 {[%clk 0:02:55]} 6. c4 {[%clk 0:02:52]}  Nf6 {[%clk 0:02:54]} 7. cxd5 {[%clk 0:02:52]}  cxd4 {[%clk 0:02:54]} 8. Bc4 {[%clk 0:02:51]}  Bd6 {[%clk 0:02:38]} 9. O-O {[%clk 0:02:50]}  O-O {[%clk 0:02:39]} 10. Bb3 {[%clk 0:02:38]}  b5 {[%clk 0:02:30]} 11. a4 {[%clk 0:02:39]}  Bb7 {[%clk 0:02:25]} 12. axb5 {[%clk 0:02:39]}  axb5 {[%clk 0:02:26]} 13. Rxa8 {[%clk 0:02:39]}  Bxa8 {[%clk 0:02:27]} 14. Nxd4 {[%clk 0:02:37]}  Nxd5 {[%clk 0:02:23]} 15. Nxb5 {[%clk 0:02:35]}  Be7 {[%clk 0:01:47]} 16. Nf3 {[%clk 0:02:32]}  Bf6 {[%clk 0:01:47]} 17. Re1 {[%clk 0:02:29]}  h6 {[%clk 0:01:46]} 18. h3 {[%clk 0:02:26]}  Na6 {[%clk 0:01:46]} 19. Bc4 {[%clk 0:02:14]}  Nc5 {[%clk 0:01:42]} 20. b3 {[%clk 0:02:05]}  Nc3 {[%clk 0:01:17]} 21. Qxd8 {[%clk 0:01:46]}  Rxd8 {[%clk 0:01:16]} 22. Be3 {[%clk 0:01:41]}  Nd3 {[%clk 0:01:10]} 23. Bxd3 {[%clk 0:01:39]}  Rxd3 {[%clk 0:01:11]} 24. Nxc3 {[%clk 0:01:39]}  Bxc3 {[%clk 0:01:10]} 25. Rc1 {[%clk 0:01:40]}  Bd5 {[%clk 0:01:07]} 26. Ne1 {[%clk 0:01:36]}  Bxe1 {[%clk 0:01:07]} 27. Rxe1 {[%clk 0:01:37]}  Rxb3 {[%clk 0:01:07]} 28. Kh2 {[%clk 0:01:33]}  f5 {[%clk 0:01:02]} 29. Rd1 {[%clk 0:01:33]}  Rb5 {[%clk 0:01:02]} 30. Rc1 {[%clk 0:01:32]}  g5 {[%clk 0:01:00]} 31. Rc5 {[%clk 0:01:32]}  Rxc5 {[%clk 0:01:00]} 32. Bxc5 {[%clk 0:01:33]}  Kf7 {[%clk 0:01:01]} 33. f3 {[%clk 0:01:32]}  Kg6 {[%clk 0:01:01]} 34. Be3 {[%clk 0:01:32]}  f4 {[%clk 0:01:01]} 35. Bf2 {[%clk 0:01:31]}  Kf5 {[%clk 0:01:02]} 36. Bc5 {[%clk 0:01:30]}  h5 {[%clk 0:01:03]} 37. Bf8 {[%clk 0:01:31]}  g4 {[%clk 0:01:03]} 38. hxg4+ {[%clk 0:01:31]}  hxg4 {[%clk 0:01:04]} 39. fxg4+ {[%clk 0:01:32]}  Kxg4 {[%clk 0:01:05]} 40. Bd6 {[%clk 0:01:32]}  Bxg2 {[%clk 0:01:04]} 41. Kxg2 {[%clk 0:01:32]}  f3+ {[%clk 0:01:05]} 42. Kf2 {[%clk 0:01:32]}  Kh5 {[%clk 0:01:06]} 43. Kxf3 {[%clk 0:01:32]} 1/2-1/2

[Event "January 2 Early 2024"]
[Site "https://www.chess.com"]
[Date "2024.01.02"]
[Round "7"]
[White "Vachier-Lagrave, Maxime"]
[Black "Drygalov, Sergey"]
[Result "1-0"]
[Board "5"]
[TimeControl "180+1"]
[WhiteFideId "623539"]
[BlackFideId "24171743"]
[WhiteElo "3182"]
[BlackElo "2952"]
[WhiteTeam "FRA"]
[BlackTeam "RUS"]
[WhiteClock "0:01:27"]
[BlackClock "0:00:17"]

1. e4 {[%clk 0:02:59]}  c6 {[%clk 0:02:55]} 2. d4 {[%clk 0:02:59]}  d5 {[%clk 0:02:55]} 3. e5 {[%clk 0:02:59]}  Bf5 {[%clk 0:02:54]} 4. Nf3 {[%clk 0:02:59]}  e6 {[%clk 0:02:53]} 5. Be2 {[%clk 0:02:59]}  Nd7 {[%clk 0:02:52]} 6. O-O {[%clk 0:02:59]}  h6 {[%clk 0:02:47]} 7. Nbd2 {[%clk 0:02:57]}  Ne7 {[%clk 0:02:47]} 8. Nb3 {[%clk 0:02:53]}  g5 {[%clk 0:02:43]} 9. Ne1 {[%clk 0:02:52]}  Bg7 {[%clk 0:02:42]} 10. Nd3 {[%clk 0:02:46]}  O-O {[%clk 0:02:29]} 11. f4 {[%clk 0:02:44]}  Ng6 {[%clk 0:02:13]} 12. fxg5 {[%clk 0:02:42]}  hxg5 {[%clk 0:02:13]} 13. Bg4 {[%clk 0:02:38]}  Bxd3 {[%clk 0:01:59]} 14. Qxd3 {[%clk 0:02:37]}  c5 {[%clk 0:01:59]} 15. Bxe6 {[%clk 0:02:30]}  Ndxe5 {[%clk 0:01:28]} 16. dxe5 {[%clk 0:02:30]}  Nxe5 {[%clk 0:01:29]} 17. Qxd5 {[%clk 0:02:24]}  fxe6 {[%clk 0:01:19]} 18. Qxe6+ {[%clk 0:02:24]}  Rf7 {[%clk 0:01:19]} 19. Be3 {[%clk 0:02:19]}  b6 {[%clk 0:01:18]} 20. Rad1 {[%clk 0:02:11]}  Qe7 {[%clk 0:01:17]} 21. Qxe7 {[%clk 0:02:11]}  Rxe7 {[%clk 0:01:18]} 22. Bxg5 {[%clk 0:02:11]}  Re6 {[%clk 0:01:13]} 23. c3 {[%clk 0:01:51]}  Rae8 {[%clk 0:01:10]} 24. Nc1 {[%clk 0:01:49]}  Nc4 {[%clk 0:01:08]} 25. Nd3 {[%clk 0:01:46]}  a5 {[%clk 0:01:08]} 26. a4 {[%clk 0:01:45]}  Rd6 {[%clk 0:00:58]} 27. Bc1 {[%clk 0:01:42]}  Rde6 {[%clk 0:00:53]} 28. h3 {[%clk 0:01:38]}  R6e7 {[%clk 0:00:27]} 29. Nf4 {[%clk 0:01:31]}  Rf7 {[%clk 0:00:26]} 30. Nd5 {[%clk 0:01:28]}  Rxf1+ {[%clk 0:00:25]} 31. Kxf1 {[%clk 0:01:27]}  Rd8 {[%clk 0:00:17]} 32. Ne7+ {[%clk 0:01:27]} 1-0